fUST/lending_fUST_20250408
["ID","MTS","AMOUNT","RATE_DAILY","PERIOD"]
[357465973,1744075866981,-160.0,0.000357,30]
[357465974,1744075866990,-150.0,0.000357,2]
[357465975,1744075867000,-160.0,0.000357,30]
[357465976,1744075867009,-476.668392,0.0003589,2]
[357465977,1744075867019,-134223.24858797,0.00036,7]
[357465978,1744075867031,-8454.24386477,0.00036,7]
[357465979,1744075867041,-160.0,0.00036,7]
[357465980,1744075867051,-160.0,0.00036,7]
[357465981,1744075867061,-151.0,0.00036,10]
[357465982,1744075867071,-150.09,0.00036164,7]
[357465983,1744075867080,-150.09,0.00036164,7]
[357465984,1744075867090,-299.91,0.00036164,7]
[357465985,1744075867099,-731.79210306,0.00036164,7]
[357465986,1744075867108,-299.91,0.00036164,7]
[357465987,1744075867118,-150.09,0.00036164,7]
[357465988,1744075867127,-299.91,0.00036164,7]
[357465989,1744075867137,-150.09,0.00036164,7]
[357465990,1744075867146,-150.09,0.00036164,7]
[357465991,1744075867156,-150.09,0.00036164,7]
[357465992,1744075867165,-150.09,0.00036164,7]
[357465993,1744075867175,-299.91,0.00036164,7]
[357465994,1744075867184,-150.09,0.00036164,7]
[357465995,1744075867194,-150.09,0.00036164,7]
[357465996,1744075867204,-150.09,0.00036164,7]
[357465997,1744075867213,-299.91,0.00036164,7]
[357465998,1744075867223,-150.09,0.00036164,7]
[357465999,1744075867235,-150.09,0.00036164,7]
[357466000,1744075867246,-150.09,0.00036164,7]
[357466001,1744075867255,-3023.93136977,0.000362,98]
[357466002,1744075867268,-2336.89171051,0.000362,98]
[357466003,1744075867277,-150.0,0.00036212,2]
[357466004,1744075867287,-2000.0,0.00036605,4]
[357466005,1744075867297,-298.42,0.000367,98]
[357466006,1744075867306,-150.0,0.000367,2]
[357466007,1744075867316,-299.82,0.00036712,7]
[357466008,1744075867325,-150.09,0.00036712,7]
[357466009,1744075867335,-150.09,0.00036712,7]
[357466010,1744075867346,-150.09,0.00036712,7]
[357466011,1744075867355,-150.09,0.00036712,7]
[357466012,1744075867366,-299.82,0.00036712,7]
[357466013,1744075867376,-299.82,0.00036712,7]
[357466014,1744075867386,-150.09,0.00036712,7]
[357466015,1744075867396,-150.09,0.00036712,7]
[357466016,1744075867406,-150.09,0.00036712,7]
[357466017,1744075867416,-299.82,0.00036712,7]
[357466018,1744075867426,-150.09,0.00036712,7]
[357466019,1744075867437,-150.09,0.00036712,7]
[357466020,1744075867447,-592.0,0.00036797,30]
[357466021,1744075867456,-1000.0,0.00036971,120]
[357466022,1744075867466,-299.73,0.0003726,7]
[357466023,1744075867478,-299.73,0.0003726,7]
[357466024,1744075867487,-263.37119429,0.0003726,7]
[357466031,1744076036881,8136.90160148,0.00021816,10]
[357466042,1744076758139,-300.0,0.0002088,2]
[357466043,1744076758162,-24900.0,0.00020881,2]
[357466044,1744076758184,-4944.8980337,0.00021143,2]
[357466045,1744076758208,-200.0,0.00021804,2]
[357466046,1744076758230,-417.56902448,0.00021816,2]
[357466047,1744076758252,-178.95815335,0.00021816,2]
[357466048,1744076758274,-40731.11435597,0.00021817,2]
[357466049,1744076797608,1136.08,0.00016,2]
[357466050,1744076830099,-300.0,0.00021816,2]
[357466051,1744076830124,-50585.27918484,0.00021817,2]
[357466052,1744076841107,-69018.58665,0.00021817,2]
[357466077,1744077035720,-200.0,0.00021804,2]
[357466078,1744077035730,-300.0,0.00021816,2]
[357466079,1744077035740,-63777.30597767,0.00021817,2]
[357466095,1744077038014,-145887.71383152,0.00021817,2]
[357466096,1744077038025,-417.56902448,0.00021916,2]
[357466097,1744077038035,-150.17,0.00021917,2]
[357466098,1744077038045,-7045.18451366,0.00021917,2]
[357466099,1744077038056,-501.43619313,0.00021917,2]
[357466100,1744077038066,-501.19095066,0.00021917,2]
[357466101,1744077038075,-502.64381988,0.00021917,2]
[357466102,1744077038086,-502.63447613,0.00021917,2]
[357466103,1744077038095,-502.04206776,0.00021917,2]
[357466104,1744077038105,-502.40297478,0.00021917,2]
[357466105,1744077038115,-501.24232997,0.00021917,2]
[357466106,1744077038125,-500.91334526,0.00021917,2]
[357466107,1744077038135,-502.167856,0.00021917,2]
[357466108,1744077038145,-501.01078543,0.00021917,2]
[357466109,1744077038155,-338.42336301,0.00021917,2]
[357466110,1744077038165,-502.22858061,0.00021917,2]
[357466111,1744077038176,-502.20083565,0.00021917,2]
[357466112,1744077038186,-502.32147002,0.00021917,2]
[357466113,1744077038196,-502.17930579,0.00021917,2]
[357466114,1744077038206,-502.04865348,0.00021917,2]
[357466116,1744077038216,-502.38053083,0.00021917,2]
[357466119,1744077038239,-500.0,0.00021917,2]
[357466120,1744077038251,-500.0,0.00021917,2]
[357466121,1744077038262,-505.48,0.00021917,2]
[357466122,1744077038273,-463.79323441,0.00021917,2]
[357466123,1744077038284,-500.0,0.00021917,2]
[357466124,1744077038295,-549.37,0.00021917,2]
[357466125,1744077038307,-989.79,0.00021917,2]
[357466126,1744077038318,-500.0,0.00021917,2]
[357466127,1744077038328,-500.0,0.00021917,2]
[357466128,1744077038339,-500.0,0.00021917,2]
[357466129,1744077038350,-500.0,0.00021917,2]
[357466130,1744077038360,-500.0,0.00021917,2]
[357466131,1744077038371,-500.0,0.00021917,2]
[357466132,1744077038382,-571.51,0.00021917,2]
[357466133,1744077038392,-500.0,0.00021917,2]
[357466134,1744077038403,-500.0,0.00021917,2]
[357466135,1744077038413,-500.0,0.00021917,2]
[357466136,1744077038424,-500.0,0.00021917,2]
[357466137,1744077038435,-500.0,0.00021917,2]
[357466138,1744077038445,-506.01170657,0.00021917,2]
[357466139,1744077038456,-500.0,0.00021917,2]
[357466140,1744077038466,-500.0,0.00021917,2]
[357466141,1744077038477,-500.0,0.00021917,2]
[357466142,1744077038487,-500.0,0.00021917,2]
[357466143,1744077038497,-510.27723003,0.00021917,2]
[357466144,1744077038508,-500.0,0.00021917,2]
[357466145,1744077038519,-500.0,0.00021917,2]
[357466146,1744077038531,-500.0,0.00021917,2]
[357466147,1744077038541,-500.0,0.00021917,2]
[357466148,1744077038552,-517.20168778,0.00021917,2]
[357466149,1744077038562,-500.0,0.00021917,2]
[357466150,1744077038572,-500.0,0.00021917,2]
[357466151,1744077038583,-500.0,0.00021917,2]
[357466152,1744077038593,-500.0,0.00021917,2]
[357466153,1744077038603,-500.0,0.00021917,2]
[357466154,1744077038613,-500.0,0.00021917,2]
[357466155,1744077038624,-500.0,0.00021917,2]
[357466156,1744077038634,-500.0,0.00021917,2]
[357466157,1744077038644,-500.0,0.00021917,2]
[357466158,1744077038654,-500.0,0.00021917,2]
[357466159,1744077038664,-520.89,0.00021917,2]
[357466160,1744077038675,-500.0,0.00021917,2]
[357466161,1744077038686,-500.0,0.00021917,2]
[357466162,1744077038696,-511.71412829,0.00021917,2]
[357466163,1744077038707,-500.0,0.00021917,2]
[357466164,1744077038718,-500.0,0.00021917,2]
[357466165,1744077038728,-500.0,0.00021917,2]
[357466166,1744077038738,-500.0,0.00021917,2]
[357466167,1744077038748,-500.0,0.00021917,2]
[357466168,1744077038758,-1231.93,0.00021917,2]
[357466169,1744077038769,-500.0,0.00021917,2]
[357466170,1744077038780,-500.0,0.00021917,2]
[357466171,1744077038794,-500.0,0.00021917,2]
[357466172,1744077038804,-500.0,0.00021917,2]
[357466173,1744077038813,-612.52,0.00021917,2]
[357466174,1744077038823,-500.0,0.00021917,2]
[357466175,1744077038833,-954.53,0.00021917,2]
[357466176,1744077038843,-500.0,0.00021917,2]
[357466177,1744077038854,-501.24,0.00021917,2]
[357466178,1744077038870,-943.13,0.00021917,2]
[357466179,1744077038880,-500.0,0.00021917,2]
[357466180,1744077038890,-500.0,0.00021917,2]
[357466181,1744077038900,-643.13,0.00021917,2]
[357466182,1744077038911,-500.0,0.00021917,2]
[357466183,1744077038921,-500.0,0.00021917,2]
[357466184,1744077038934,-501.8282301,0.00021917,2]
[357466185,1744077038944,-500.0,0.00021917,2]
[357466186,1744077038955,-500.0,0.00021917,2]
[357466187,1744077038965,-500.0,0.00021917,2]
[357466188,1744077038975,-500.0,0.00021917,2]
[357466189,1744077038986,-500.0,0.00021917,2]
[357466190,1744077038996,-500.0,0.00021917,2]
[357466191,1744077039007,-500.0,0.00021917,2]
[357466192,1744077039017,-1197.82,0.00021917,2]
[357466193,1744077039027,-711.83,0.00021917,2]
[357466194,1744077039038,-500.0,0.00021917,2]
[357466195,1744077039049,-500.0,0.00021917,2]
[357466196,1744077039059,-500.0,0.00021917,2]
[357466197,1744077039070,-1237.52,0.00021917,2]
[357466198,1744077039080,-500.0,0.00021917,2]
[357466199,1744077039090,-500.0,0.00021917,2]
[357466200,1744077039100,-500.0,0.00021917,2]
[357466201,1744077039110,-500.0,0.00021917,2]
[357466202,1744077039120,-500.0,0.00021917,2]
[357466203,1744077039130,-500.0,0.00021917,2]
[357466204,1744077039140,-816.65,0.00021917,2]
[357466205,1744077039150,-500.0,0.00021917,2]
[357466206,1744077039160,-500.0,0.00021917,2]
[357466207,1744077039170,-500.0,0.00021917,2]
[357466208,1744077039181,-500.0,0.00021917,2]
[357466209,1744077039192,-500.0,0.00021917,2]
[357466210,1744077039202,-500.0,0.00021917,2]
[357466211,1744077039213,-500.0,0.00021917,2]
[357466212,1744077039223,-500.0,0.00021917,2]
[357466213,1744077039234,-500.0,0.00021917,2]
[357466214,1744077039244,-500.0,0.00021917,2]
[357466215,1744077039255,-500.0,0.00021917,2]
[357466216,1744077039268,-508.9054363,0.00021917,2]
[357466217,1744077039281,-500.0,0.00021917,2]
[357466218,1744077039291,-165.56989412,0.00021917,2]
[357466219,1744077039302,-500.0,0.00021917,2]
[357466220,1744077039312,-500.0,0.00021917,2]
[357466221,1744077039322,-500.0,0.00021917,2]
[357466222,1744077039332,-521.4,0.00021917,2]
[357466223,1744077039342,-500.0,0.00021917,2]
[357466224,1744077039352,-677.48,0.00021917,2]
[357466225,1744077039363,-500.0,0.00021917,2]
[357466227,1744077039373,-500.0,0.00021917,2]
[357466228,1744077039383,-500.0,0.00021917,2]
[357466229,1744077039393,-500.0,0.00021917,2]
[357466230,1744077039403,-500.0,0.00021917,2]
[357466231,1744077039413,-500.0,0.00021917,2]
[357466232,1744077039423,-1015.63,0.00021917,2]
[357466233,1744077039433,-965.83,0.00021917,2]
[357466234,1744077039443,-500.0,0.00021917,2]
[357466235,1744077039453,-883.8,0.00021917,2]
[357466236,1744077039465,-520.7662381,0.00021917,2]
[357466237,1744077039475,-504.07056327,0.00021917,2]
[357466238,1744077039485,-955.46,0.00021917,2]
[357466239,1744077039495,-500.0,0.00021917,2]
[357466240,1744077039506,-500.0,0.00021917,2]
[357466241,1744077039516,-500.0,0.00021917,2]
[357466242,1744077039527,-2195.18,0.00021917,2]
[357466243,1744077039539,-500.0,0.00021917,2]
[357466244,1744077039550,-500.0,0.00021917,2]
[357466245,1744077039561,-500.0,0.00021917,2]
[357466246,1744077039571,-500.0,0.00021917,2]
[357466247,1744077039581,-500.0,0.00021917,2]
[357466248,1744077039592,-500.0,0.00021917,2]
[357466249,1744077039602,-500.0,0.00021917,2]
[357466251,1744077039612,-1724.47,0.00021917,2]
[357466252,1744077039621,-500.0,0.00021917,2]
[357466253,1744077039631,-500.0,0.00021917,2]
[357466254,1744077039641,-500.0,0.00021917,2]
[357466255,1744077039652,-1673.88,0.00021917,2]
[357466256,1744077039663,-500.0,0.00021917,2]
[357466257,1744077039673,-534.14,0.00021917,2]
[357466258,1744077039683,-500.0,0.00021917,2]
[357466259,1744077039693,-500.0,0.00021917,2]
[357466260,1744077039703,-500.0,0.00021917,2]
[357466262,1744077039714,-500.0,0.00021917,2]
[357466263,1744077039724,-1340.54,0.00021917,2]
[357466264,1744077039734,-500.0,0.00021917,2]
[357466265,1744077039745,-542.01,0.00021917,2]
[357466266,1744077039755,-524.96,0.00021917,2]
[357466267,1744077039765,-500.0,0.00021917,2]
[357466268,1744077039776,-500.0,0.00021917,2]
[357466269,1744077039789,-500.0,0.00021917,2]
[357466271,1744077039799,-500.0,0.00021917,2]
[357466272,1744077039809,-247.45595491,0.00021917,2]
[357466273,1744077039819,-500.0,0.00021917,2]
[357466274,1744077039829,-730.76,0.00021917,2]
[357466275,1744077039840,-1513.16,0.00021917,2]
[357466276,1744077039850,-2076.71,0.00021917,2]
[357466277,1744077039860,-500.0,0.00021917,2]
[357466278,1744077039871,-2241.86,0.00021917,2]
[357466279,1744077039881,-1276.21,0.00021917,2]
[357466280,1744077039891,-720.44,0.00021917,2]
[357466281,1744077039902,-500.0,0.00021917,2]
[357466282,1744077039912,-2755.26,0.00021917,2]
[357466284,1744077039922,-500.0,0.00021917,2]
[357466285,1744077039934,-500.0,0.00021917,2]
[357466286,1744077039944,-500.0,0.00021917,2]
[357466287,1744077039955,-542.12329527,0.00021917,2]
[357466288,1744077039965,-240.77161436,0.00021917,2]
[357466289,1744077039975,-500.0,0.00021917,2]
[357466290,1744077039984,-500.0,0.00021917,2]
[357466291,1744077039994,-500.0,0.00021917,2]
[357466292,1744077040011,-500.0,0.00021917,2]
[357466293,1744077040021,-500.0,0.00021917,2]
[357466294,1744077040033,-500.0,0.00021917,2]
[357466295,1744077040042,-795.94,0.00021917,2]
[357466296,1744077040052,-522.43740533,0.00021917,2]
[357466297,1744077040062,-505.0308066,0.00021917,2]
[357466298,1744077040072,-500.0,0.00021917,2]
[357466300,1744077040083,-218.19178843,0.00021917,2]
[357466301,1744077040093,-1073.11,0.00021917,2]
[357466302,1744077040103,-5255.83,0.00021917,2]
[357466303,1744077040113,-526.60864357,0.00021917,2]
[357466304,1744077040123,-1335.7,0.00021917,2]
[357466305,1744077040133,-500.0,0.00021917,2]
[357466306,1744077040143,-200.0,0.00021917,2]
[357466308,1744077040153,-201.77508506,0.00021917,2]
[357466310,1744077040164,-500.0,0.00021917,2]
[357466311,1744077040174,-1162.69,0.00021917,2]
[357466312,1744077040184,-500.0,0.00021917,2]
[357466313,1744077040194,-561.08,0.00021917,2]
[357466314,1744077040204,-500.0,0.00021917,2]
[357466315,1744077040214,-500.0,0.00021917,2]
[357466316,1744077040224,-1291.27,0.00021917,2]
[357466317,1744077040234,-2979.5,0.00021917,2]
[357466318,1744077040245,-590.76,0.00021917,2]
[357466319,1744077040255,-505.81141377,0.00021917,2]
[357466320,1744077040265,-449.61999963,0.00021917,2]
[357466321,1744077040275,-1401.91,0.00021917,2]
[357466322,1744077040286,-268.11195087,0.00021917,2]
[357466324,1744077040296,-500.0,0.00021917,2]
[357466326,1744077040306,-500.0,0.00021917,2]
[357466327,1744077040316,-500.0,0.00021917,2]
[357466328,1744077040326,-500.0,0.00021917,2]
[357466329,1744077040337,-500.0,0.00021917,2]
[357466330,1744077040347,-500.0,0.00021917,2]
[357466331,1744077040357,-500.63267858,0.00021917,2]
[357466333,1744077040367,-500.0,0.00021917,2]
[357466334,1744077040388,-522.00891515,0.00021917,2]
[357466335,1744077040399,-500.0,0.00021917,2]
[357466336,1744077040410,-500.0,0.00021917,2]
[357466337,1744077040420,-1531.45,0.00021917,2]
[357466338,1744077040430,-521.97391915,0.00021917,2]
[357466339,1744077040440,-500.0,0.00021917,2]
[357466340,1744077040450,-500.0,0.00021917,2]
[357466341,1744077040460,-1855.88,0.00021917,2]
[357466342,1744077040470,-500.0,0.00021917,2]
[357466343,1744077040480,-500.0,0.00021917,2]
[357466344,1744077040490,-1878.37,0.00021917,2]
[357466345,1744077040500,-393.73989714,0.00021917,2]
[357466346,1744077040510,-500.0,0.00021917,2]
[357466347,1744077040519,-531.05778226,0.00021917,2]
[357466348,1744077040529,-500.0,0.00021917,2]
[357466349,1744077040539,-500.0,0.00021917,2]
[357466350,1744077040549,-500.0,0.00021917,2]
[357466351,1744077040559,-500.0,0.00021917,2]
[357466352,1744077040569,-515.8723377,0.00021917,2]
[357466353,1744077040578,-503.96034136,0.00021917,2]
[357466354,1744077040589,-1906.57,0.00021917,2]
[357466356,1744077040598,-500.0,0.00021917,2]
[357466357,1744077040608,-500.0,0.00021917,2]
[357466358,1744077040618,-500.0,0.00021917,2]
[357466359,1744077040628,-500.0,0.00021917,2]
[357466360,1744077040637,-1240.57,0.00021917,2]
[357466361,1744077040647,-1498.13,0.00021917,2]
[357466362,1744077040657,-500.0,0.00021917,2]
[357466363,1744077040666,-500.0,0.00021917,2]
[357466364,1744077040676,-204.18719864,0.00021917,2]
[357466365,1744077040686,-533.51805361,0.00021917,2]
[357466366,1744077040695,-500.0,0.00021917,2]
[357466367,1744077040706,-211.11274362,0.00021917,2]
[357466368,1744077040715,-1165.83,0.00021917,2]
[357466369,1744077040725,-526.82758885,0.00021917,2]
[357466370,1744077040734,-500.0,0.00021917,2]
[357466371,1744077040744,-500.0,0.00021917,2]
[357466372,1744077040753,-500.0,0.00021917,2]
[357466373,1744077040763,-514.57302571,0.00021917,2]
[357466374,1744077040772,-500.0,0.00021917,2]
[357466375,1744077040783,-512.82875101,0.00021917,2]
[357466376,1744077040792,-1184.51,0.00021917,2]
[357466377,1744077040802,-2926.36,0.00021917,2]
[357466378,1744077040811,-508.22395177,0.00021917,2]
[357466379,1744077040822,-1109.48,0.00021917,2]
[357466380,1744077040832,-8763.46,0.00021917,2]
[357466381,1744077040844,-602.81,0.00021917,2]
[357466382,1744077040855,-1118.42,0.00021917,2]
[357466383,1744077040865,-500.0,0.00021917,2]
[357466384,1744077040875,-500.0,0.00021917,2]
[357466385,1744077040884,-503.7,0.00021917,2]
[357466386,1744077040895,-500.0,0.00021917,2]
[357466387,1744077040904,-500.0,0.00021917,2]
[357466388,1744077040916,-500.0,0.00021917,2]
[357466389,1744077040927,-500.0,0.00021917,2]
[357466390,1744077040936,-505.92396478,0.00021917,2]
[357466391,1744077040946,-1780.71,0.00021917,2]
[357466392,1744077040957,-500.0,0.00021917,2]
[357466393,1744077040967,-1436.15,0.00021917,2]
[357466394,1744077040977,-500.0,0.00021917,2]
[357466395,1744077040991,-1436.15,0.00021917,2]
[357466396,1744077041002,-1436.15,0.00021917,2]
[357466397,1744077041012,-1436.15,0.00021917,2]
[357466398,1744077041023,-1436.15,0.00021917,2]
[357466399,1744077041035,-1436.15,0.00021917,2]
[357466400,1744077041046,-1436.15,0.00021917,2]
[357466401,1744077041056,-1436.15,0.00021917,2]
[357466402,1744077041066,-1436.15,0.00021917,2]
[357466403,1744077041076,-1436.15,0.00021917,2]
[357466404,1744077041085,-1436.15,0.00021917,2]
[357466405,1744077041095,-1436.15,0.00021917,2]
[357466406,1744077041106,-1436.15,0.00021917,2]
[357466407,1744077041116,-1436.15,0.00021917,2]
[357466408,1744077041126,-1436.15,0.00021917,2]
[357466409,1744077041136,-1436.15,0.00021917,2]
[357466410,1744077041146,-1436.15,0.00021917,2]
[357466411,1744077041156,-1436.15,0.00021917,2]
[357466412,1744077041166,-1436.15,0.00021917,2]
[357466413,1744077041176,-1436.15,0.00021917,2]
[357466414,1744077041185,-1436.15,0.00021917,2]
[357466415,1744077041195,-1436.15,0.00021917,2]
[357466416,1744077041205,-1436.15,0.00021917,2]
[357466417,1744077041215,-520.53114595,0.00021917,2]
[357466418,1744077041224,-1436.31436247,0.00021917,2]
[357466419,1744077041234,-1494.33,0.00021917,2]
[357466420,1744077041244,-2426.96,0.00021917,2]
[357466421,1744077041254,-853.03,0.00021917,2]
[357466422,1744077041265,-513.78744727,0.00021917,2]
[357466423,1744077041274,-500.0,0.00021917,2]
[357466424,1744077041287,-500.0,0.00021917,2]
[357466425,1744077041297,-500.0,0.00021917,2]
[357466426,1744077041307,-1136.31,0.00021917,2]
[357466427,1744077041317,-233.85953548,0.00021917,2]
[357466428,1744077041328,-516.33189711,0.00021917,2]
[357466429,1744077041338,-477.59157027,0.00021917,2]
[357466430,1744077041348,-500.0,0.00021917,2]
[357466431,1744077041357,-2088.72,0.00021917,2]
[357466432,1744077041367,-512.70510642,0.00021917,2]
[357466433,1744077041377,-504.32029485,0.00021917,2]
[357466434,1744077041387,-500.0,0.00021917,2]
[357466435,1744077041397,-1347.03,0.00021917,2]
[357466436,1744077041407,-532.80811461,0.00021917,2]
[357466437,1744077041416,-500.0,0.00021917,2]
[357466438,1744077041426,-502.23508926,0.00021973,2]
[357466439,1744077041436,-500.0,0.00021973,2]
[357466440,1744077041446,-500.0,0.00021973,2]
[357466441,1744077041456,-500.0,0.00021973,2]
[357466442,1744077041466,-501.530967,0.00021973,2]
[357466443,1744077041475,-500.73174425,0.00021973,2]
[357466444,1744077041485,-500.0,0.00021973,2]
[357466445,1744077041495,-535.61244981,0.00021973,2]
[357466446,1744077041505,-500.0,0.00021973,2]
[357466447,1744077041515,-500.0,0.00021973,2]
[357466448,1744077041525,-500.0,0.00021973,2]
[357466449,1744077041535,-820.0,0.00022,2]
[357466450,1744077041545,-2119.0,0.00022,2]
[357466451,1744077041555,-1648.0,0.00022,2]
[357466452,1744077041565,-501.15278312,0.00022173,2]
[357466453,1744077041575,-500.0,0.00022173,2]
[357466454,1744077041584,-500.0,0.00022173,2]
[357466455,1744077041594,-500.0,0.00022173,2]
[357466456,1744077041604,-500.0,0.00022173,2]
[357466457,1744077041614,-339.59470037,0.00022173,2]
[357466458,1744077041626,-500.0,0.00022173,2]
[357466459,1744077041636,-500.0,0.00022173,2]
[357466460,1744077041645,-500.0,0.00022173,2]
[357466461,1744077041655,-500.0,0.00022173,2]
[357466462,1744077041665,-500.0,0.00022173,2]
[357466463,1744077041675,-500.66664329,0.00022173,2]
[357466464,1744077041684,-503.56205169,0.00022173,2]
[357466465,1744077041694,-500.49303946,0.00022173,2]
[357466466,1744077041704,-500.0,0.00022173,2]
[357466467,1744077041714,-500.0,0.00022173,2]
[357466468,1744077041724,-500.0,0.00022173,2]
[357466469,1744077041734,-500.44014391,0.00022173,2]
[357466470,1744077041744,-430.08989638,0.00022173,2]
[357466471,1744077041753,-256.9179675,0.00022173,2]
[357466472,1744077041763,-500.0,0.00022173,2]
[357466473,1744077041773,-500.0,0.00022173,2]
[357466474,1744077041784,-500.0,0.00022173,2]
[357466475,1744077041793,-501.32097158,0.00022173,2]
[357466476,1744077041803,-501.97825502,0.00022173,2]
[357466477,1744077041813,-500.63505816,0.00022173,2]
[357466478,1744077041822,-165.09083967,0.00022173,2]
[357466479,1744077041832,-301.64419783,0.00022173,2]
[357466480,1744077041842,-500.0,0.00022173,2]
[357466481,1744077041851,-501.49778525,0.00022173,2]
[357466482,1744077041861,-501.01809197,0.00022173,2]
[357466483,1744077041870,-200.0,0.0002219,2]
[357466484,1744077041880,-500.0,0.00022191,2]
[357466485,1744077041890,-500.0,0.00022191,2]
[357466486,1744077041899,-505.48,0.00022191,2]
[357466487,1744077041909,-500.0,0.00022191,2]
[357466488,1744077041919,-549.37,0.00022191,2]
[357466489,1744077041932,-989.79,0.00022191,2]
[357466490,1744077041943,-412.37280438,0.00022191,2]
[357466491,1744077041953,-500.0,0.00022191,2]
[357466492,1744077041963,-500.0,0.00022191,2]
[357466493,1744077041973,-500.0,0.00022191,2]
[357466494,1744077041984,-500.0,0.00022191,2]
[357466495,1744077041994,-500.0,0.00022191,2]
[357466496,1744077042004,-571.51,0.00022191,2]
[357466497,1744077042016,-500.0,0.00022191,2]
[357466498,1744077042027,-152.13772553,0.00022191,2]
[357466499,1744077042040,-500.0,0.00022191,2]
[357466500,1744077042050,-412.28407793,0.00022191,2]
[357466501,1744077042333,-500.0,0.00022191,2]
[357466502,1744077042343,-500.0,0.00022191,2]
[357466503,1744077042353,-500.0,0.00022191,2]
[357466504,1744077042364,-500.0,0.00022191,2]
[357466505,1744077042374,-500.0,0.00022191,2]
[357466507,1744077042384,-636.93786963,0.00022191,2]
[357466509,1744077042394,-500.0,0.00022191,2]
[357466511,1744077042404,-500.0,0.00022191,2]
[357466512,1744077042414,-500.0,0.00022191,2]
[357466513,1744077042424,-500.0,0.00022191,2]
[357466514,1744077042447,-500.0,0.00022191,2]
[357466515,1744077042458,-500.0,0.00022191,2]
[357466516,1744077042470,-500.0,0.00022191,2]
[357466518,1744077042481,-500.0,0.00022191,2]
[357466519,1744077042491,-500.0,0.00022191,2]
[357466520,1744077042502,-500.0,0.00022191,2]
[357466521,1744077042512,-500.0,0.00022191,2]
[357466522,1744077042523,-500.0,0.00022191,2]
[357466523,1744077042535,-500.0,0.00022191,2]
[357466524,1744077042546,-520.89,0.00022191,2]
[357466525,1744077042557,-500.0,0.00022191,2]
[357466526,1744077042568,-500.0,0.00022191,2]
[357466527,1744077042579,-500.0,0.00022191,2]
[357466528,1744077042590,-500.0,0.00022191,2]
[357466530,1744077042602,-500.0,0.00022191,2]
[357466533,1744077042612,-599.06208993,0.00022191,2]
[357466534,1744077042623,-500.0,0.00022191,2]
[357466535,1744077042634,-1231.93,0.00022191,2]
[357466536,1744077042644,-500.0,0.00022191,2]
[357466537,1744077042655,-500.0,0.00022191,2]
[357466538,1744077042665,-500.0,0.00022191,2]
[357466539,1744077042676,-500.0,0.00022191,2]
[357466541,1744077042686,-612.52,0.00022191,2]
[357466543,1744077042697,-500.0,0.00022191,2]
[357466544,1744077042707,-954.53,0.00022191,2]
[357466546,1744077042718,-500.0,0.00022191,2]
[357466547,1744077042730,-501.24,0.00022191,2]
[357466548,1744077042741,-943.13,0.00022191,2]
[357466549,1744077042751,-500.0,0.00022191,2]
[357466550,1744077042762,-500.0,0.00022191,2]
[357466551,1744077042772,-643.13,0.00022191,2]
[357466552,1744077042782,-500.0,0.00022191,2]